bitfinex-derivatives/quotes_SOLF0:USTF0_20250331
["timestamp","ask_amount","ask_price","bid_price","bid_amount"]
[1743428794531,23.04454023,123.55,123.47,46.4602]
[1743428794930,23.04454023,123.55,123.48,8.0995]
[1743428795128,62.16522972,123.57,123.47,38.36]
[1743428795427,0.05579205,123.53,123.5,8.15693269]
[1743428796132,8.15289205,123.53,123.5,8.15693269]
[1743428796334,0.05579205,123.53,123.5,0.05873269]
[1743428797034,8.0977,123.52,123.5,0.05873269]
[1743428797225,0.05579205,123.53,123.5,0.05873269]
[1743428797632,8.0979,123.51,123.5,0.05873269]
[1743428797824,0.05579205,123.53,123.5,0.05873269]
[1743428798028,8.0979,123.51,123.5,0.05873269]
[1743428798223,23.76102177,123.53,123.45,291.62]
[1743428798433,23.70522972,123.53,123.46,1.47684971]
[1743428798628,8.0981,123.51,123.46,1.47684971]
[1743428799226,62.16522972,123.57,123.46,25.18207943]
[1743428799433,62.16522972,123.57,123.47,1.52659449]
[1743428799434,0.05495716,123.5,123.47,1.52659449]
[1743428799632,38.46,123.57,123.47,1.47679107]
[1743428799834,8.0952,123.56,123.48,23.70522972]
[1743428800038,24.2684,123.64,123.5,23.70522972]
[1743428800336,38.34,123.67,123.52,23.70522972]
[1743428800539,38.34,123.67,123.49,38.36]
[1743428800540,23.70522972,123.61,123.5,23.70522972]
[1743428800831,8.095,123.56,123.51,38.38]
[1743428801137,0.05989414,123.57,123.54,0.05142009]
[1743428801339,8.0965,123.54,123.51,38.38]
[1743428801633,8.0965,123.54,123.46,112.4368299]
[1743428801634,23.70522972,123.55,123.46,88.73160018]
[1743428801834,8.0967,123.53,123.48,38.4]
[1743428802139,62.10522972,123.57,123.48,38.4]
[1743428802640,0.05414435,123.54,123.51,0.05202006]
[1743428802838,8.15064435,123.54,123.51,0.05202006]
[1743428803027,0.05414435,123.54,123.51,0.05202006]
[1743428803228,0.05414435,123.54,123.52,38.44]
[1743428804739,0.05414435,123.54,123.52,108.5369]
[1743428805039,23.70522972,123.63,123.52,212.8768299]
[1743428805232,8.0923,123.6,123.54,8.0956]
[1743428805437,23.70522972,123.63,123.52,150.8768299]
[1743428805638,23.70522972,123.63,123.53,1.47586056]
[1743428805834,23.70522972,123.65,123.54,23.70522972]
[1743428806041,23.70522972,123.65,123.55,1.47586056]
[1743428806241,0.05891738,123.61,123.58,0.05579255]
[1743428806441,0.05891738,123.61,123.58,23.76102227]
[1743428806641,23.70522972,123.7,123.58,23.76102227]
[1743428806840,23.70522972,123.7,123.61,8.091]
[1743428807056,62.36522972,123.72,123.62,38.66]
[1743428807251,62.36522972,123.72,123.63,38.66]
[1743428807650,23.70522972,123.72,123.63,38.66]
[1743428807850,0.06027753,123.69,123.66,0.06052609]
[1743428808052,0.06027753,123.69,123.63,38.66]
[1743428808555,8.088,123.67,123.64,62.0]
[1743428809051,0.06027753,123.69,123.64,62.0]
[1743428809252,0.06027753,123.69,123.64,0.05659033]
[1743428809452,0.06027753,123.69,123.66,88.73160018]
[1743428809658,8.0874,123.67,123.66,49.17780018]
[1743428809955,8.0874,123.67,123.66,35.94480018]
[1743428810657,23.76550725,123.69,123.65,133.18119322]
[1743428811051,23.76550725,123.69,123.64,222.0252457]
[1743428811250,8.0887,123.65,123.64,222.0252457]
[1743428811654,0.05965263,123.66,123.64,38.57659033]
[1743428811849,8.0871,123.68,123.64,38.52]
[1743428812056,0.05311828,123.66,123.64,38.57178988]
[1743428812359,8.0881,123.66,123.65,62.0]
[1743428812657,315.02522972,123.73,123.65,62.0]
[1743428813552,23.70522972,123.71,123.65,62.0]
[1743428813753,0.05241476,123.7,123.68,0.05161577]
[1743428814257,0.05241476,123.7,123.64,38.46]
[1743428814756,62.10522972,123.71,123.64,38.46]
[1743428815459,0.05498655,123.69,123.66,0.05968789]
[1743428816455,8.0825,123.75,123.69,8.0858]
[1743428816655,8.0825,123.75,123.69,38.3]
[1743428816960,23.70522972,123.77,123.69,38.3]
[1743428817154,8.0819,123.76,123.7,8.085]
[1743428817354,23.70522972,123.77,123.69,100.3]
[1743428817555,0.05799441,123.74,123.72,0.05512753]
[1743428817850,8.0835,123.73,123.72,0.05512753]
[1743428818056,0.05799441,123.74,123.72,0.05512753]
[1743428818961,0.05799441,123.74,123.66,39.73431871]
[1743428819255,23.70522972,123.75,123.66,172.12511103]
[1743428819461,23.70522972,123.75,123.67,8.0869]
[1743428819661,23.70522972,123.75,123.66,172.12511103]
[1743428819863,8.0858,123.7,123.66,172.12511103]
[1743428820061,0.0554017,123.72,123.69,0.05109306]
[1743428820257,61.96522972,123.77,123.66,172.12511103]
[1743428820456,0.05576625,123.72,123.69,8.14085132]
[1743428820655,0.05576625,123.72,123.66,172.12511103]
[1743428820855,0.05576625,123.72,123.69,0.05755538]
[1743428821362,0.05576625,123.72,123.7,38.16]
[1743428821557,8.0848,123.71,123.7,38.16]
[1743428821758,0.05576625,123.72,123.7,38.16]
[1743428822061,23.70522972,123.77,123.7,38.16]
[1743428822559,8.0817,123.76,123.72,8.0837]
[1743428822760,352.98522972,123.79,123.7,38.16]
[1743428823158,0.05515231,123.76,123.73,0.05256974]
[1743428825059,23.70522972,123.75,123.67,38.02]
[1743428825353,23.70522972,123.73,123.65,133.86511103]
[1743428825757,31.78922972,123.73,123.65,141.95381103]
[1743428825960,23.70522972,123.73,123.65,133.86511103]
[1743428826263,8.13839597,123.7,123.68,0.05248572]
[1743428826456,38.08,123.71,123.68,0.05248572]
[1743428826959,0.05740094,123.7,123.68,0.05248572]
[1743428828458,0.05740094,123.7,123.69,8.0861]
[1743428828658,23.70522972,123.76,123.68,0.05248572]
[1743428828858,23.70522972,123.76,123.67,38.02]
[1743428829059,8.0831,123.74,123.67,46.1073]
[1743428829261,23.70522972,123.74,123.67,38.02]
[1743428829465,31.78832972,123.74,123.67,46.1072]
[1743428829663,23.70522972,123.74,123.67,38.02]
[1743428829864,0.05478058,123.72,123.69,0.06192727]
[1743428831865,61.8000103,123.72,123.69,0.06192727]
[1743428832461,0.05478058,123.72,123.69,0.06192727]
[1743428832859,0.05478058,123.72,123.71,8.0848]
[1743428833066,291.12,123.79,123.7,23.70522972]
[1743428833363,23.70522972,123.83,123.72,23.70522972]
[1743428833561,23.70522972,123.84,123.74,23.70522972]
[1743428833756,23.70522972,123.82,123.75,38.34]
[1743428834160,23.76569775,123.8,123.77,0.05579125]
[1743428834371,23.70522972,123.78,123.72,38.36]
[1743428834962,31.78602972,123.78,123.72,38.36]
[1743428835162,23.70522972,123.78,123.72,38.36]
[1743428835661,23.76274148,123.76,123.74,0.05327005]
[1743428836170,23.76274148,123.76,123.72,88.42367378]
[1743428836368,23.70522972,123.74,123.72,88.42367378]
[1743428836568,38.52,123.74,123.72,88.42367378]
[1743428836768,23.76274148,123.76,123.72,88.42367378]
[1743428836967,23.70522972,123.74,123.72,88.42367378]
[1743428837168,38.46,123.73,123.72,88.42367378]
[1743428837368,38.46,123.73,123.72,88.47805567]
[1743428837965,38.46,123.73,123.72,0.05438189]
[1743428838469,76.98580045,123.73,123.65,126.80367378]
[1743428838666,38.46,123.73,123.65,126.80367378]
[1743428839172,38.38,123.76,123.66,38.52580045]
[1743428839565,38.38,123.76,123.72,8.0839]
[1743428840068,0.06090502,123.75,123.74,8.0825]
[1743428840371,290.92,123.77,123.69,38.42]
[1743428840667,38.58596649,123.76,123.73,0.05320309]
[1743428840862,38.52580045,123.74,123.67,88.42367378]
[1743428841370,329.44580045,123.77,123.67,88.42367378]
[1743428841671,38.52580045,123.79,123.68,40.00000399]
[1743428841871,0.05863943,123.75,123.7,38.52580045]
[1743428842172,0.05971115,123.74,123.71,62.0]
[1743428842472,0.05971115,123.74,123.69,126.88367378]
[1743428842662,0.05971115,123.74,123.7,8.085]
[1743428843068,0.05971115,123.74,123.72,8.0838]
[1743428843267,0.05971115,123.74,123.69,126.88367378]
[1743428844173,0.05971115,123.74,123.72,8.0841]
[1743428844474,0.0039199,123.74,123.72,222.28878481]
[1743428845464,38.52580045,123.82,123.73,38.48]
[1743428846770,0.05986666,123.79,123.76,0.05302075]
[1743428847373,0.05986666,123.79,123.78,8.0803]
[1743428848068,0.05986666,123.79,123.76,0.05302075]
[1743428848666,0.05986666,123.79,123.78,8.0803]
[1743428851269,8.0803,123.78,123.77,88.42367378]
[1743428851470,0.05986666,123.79,123.77,223.10851839]
[1743428851669,38.52580045,123.8,123.77,223.10851839]
[1743428851870,38.78,123.79,123.77,223.10851839]
[1743428852070,8.0803,123.78,123.77,223.10851839]
[1743428852475,38.78,123.79,123.77,223.10851839]
[1743428852971,0.0519028,123.79,123.77,223.16629478]
[1743428853375,0.0519028,123.79,123.77,0.05777639]
[1743428853772,8.0803,123.78,123.77,0.05777639]
[1743428853973,0.0519028,123.79,123.77,0.05777639]
[1743428856575,8.0803,123.78,123.77,0.05777639]
[1743428856771,0.0519028,123.79,123.77,0.05777639]
[1743428857573,8.0803,123.78,123.77,0.05777639]
[1743428857782,0.0519028,123.79,123.77,0.05777639]
[1743428858883,0.0519028,123.79,123.77,8.13857639]
[1743428859079,0.0519028,123.79,123.77,0.05777639]
[1743428859484,0.0519028,123.79,123.78,8.0803]
[1743428859874,0.0519028,123.79,123.77,0.05777639]
[1743428860483,0.0519028,123.79,123.78,8.0803]
[1743428861781,362.0,123.95,123.78,31.76351013]
[1743428861985,8.0723,123.91,123.82,23.68351013]
[1743428862281,62.40351013,123.93,123.83,38.72]
[1743428862587,8.0731,123.89,123.83,38.72]
[1743428862786,8.0731,123.89,123.86,8.0747]
[1743428862985,0.05113038,123.87,123.85,0.05408261]
[1743428863183,23.68351013,123.91,123.8,23.68351013]
[1743428863388,23.68351013,123.85,123.76,38.8]
[1743428863587,62.46351013,123.85,123.76,38.8]
[1743428863784,8.078,123.82,123.77,8.0806]
[1743428863979,62.46351013,123.85,123.76,38.8]
[1743428864288,23.68351013,123.83,123.8,89.46132857]
[1743428864684,8.0783,123.81,123.8,89.46132857]
[1743428864887,46.7783,123.81,123.8,89.51281901]
[1743428865181,62.38351013,123.81,123.79,62.26923101]
[1743428865383,8.0789,123.8,123.79,62.26923101]
[1743428865986,23.74554233,123.83,123.79,62.26923101]
[1743428866181,38.7220322,123.83,123.78,0.05452515]
[1743428866486,8.0781,123.82,123.78,0.05452515]
[1743428866686,77.1707303,123.83,123.78,0.05452515]
[1743428867189,8.0796,123.79,123.78,0.05452515]
[1743428867382,4.1732,123.82,123.78,0.05452515]
[1743428867579,0.05405618,123.8,123.78,0.05452515]
[1743428868190,8.0796,123.79,123.78,0.05452515]
[1743428869691,8.13315618,123.8,123.78,0.05452515]
[1743428869893,0.05405618,123.8,123.78,0.05452515]
[1743428870095,8.0796,123.79,123.78,0.05452515]
[1743428870395,76.9886981,123.79,123.71,338.79117759]
[1743428870598,38.4686981,123.77,123.71,334.66277759]
[1743428871296,8.0834,123.72,123.71,334.66277759]
[1743428871596,0.05870156,123.73,123.71,334.66277759]
[1743428871983,42.6565,123.79,123.71,334.66277759]
[1743428872186,329.32,123.81,123.72,42.6921981]
[1743428872895,329.32,123.81,123.73,4.381]
[1743428873085,329.32,123.81,123.74,8.0816]
[1743428873396,0.05722689,123.78,123.76,0.05152754]
[1743428875289,4.0237,123.86,123.76,46.60022564]
[1743428875489,4.0237,123.86,123.78,38.4686981]
[1743428875689,4.3119,123.88,123.8,38.4686981]
[1743428875690,8.6491,123.88,123.8,38.4686981]
[1743428875891,77.2086981,123.92,123.81,4.0175]
[1743428876096,85.8577981,123.92,123.82,4.0159]
[1743428876290,38.4686981,123.9,123.83,38.74]
[1743428876595,0.05222176,123.88,123.86,0.05948723]
[1743428877594,8.0736,123.87,123.86,0.05948723]
[1743428877992,8.08,123.87,123.74,396.4686981]
[1743428878298,38.4686981,123.84,123.74,77.1486981]
[1743428878502,38.66,123.83,123.74,38.68]
[1743428878702,8.0791,123.79,123.74,38.68]
[1743428879003,38.4686981,123.82,123.73,12.3815]
[1743428879209,0.05545122,123.78,123.75,0.05342038]
[1743428879401,363.40498203,123.95,123.76,38.64]
[1743428879605,38.4686981,123.91,123.8,38.4686981]
[1743428879905,38.4686981,123.87,123.81,38.62]
[1743428880109,38.4686981,123.85,123.75,38.6]
[1743428880309,47.1632,123.86,123.75,38.6]
[1743428880509,0.05201049,123.81,123.79,0.05967266]
[1743428880703,38.4686981,123.85,123.79,0.05967266]
[1743428880904,0.06069808,123.81,123.79,0.05967266]
[1743428881105,38.62,123.8,123.71,334.66277759]
[1743428881299,4.3965,123.79,123.71,334.66277759]
[1743428881602,42.8651981,123.79,123.71,334.66277759]
[1743428881804,8.0818,123.75,123.71,334.66277759]
[1743428882103,42.8651981,123.79,123.71,334.66277759]
[1743428882308,0.05926544,123.74,123.72,0.05928692]
[1743428882610,42.8651981,123.79,123.72,0.05928692]
[1743428882805,8.0813,123.76,123.72,0.05928692]
[1743428883009,0.05198715,123.77,123.72,0.05928692]
[1743428883510,8.0817,123.75,123.72,0.05928692]
[1743428883713,0.05198715,123.77,123.72,0.05928692]
[1743428884102,38.66,123.76,123.72,0.05928692]
[1743428885509,38.4686981,123.75,123.72,0.05928692]
[1743428885706,8.0827,123.73,123.72,0.05928692]
[1743428885912,38.4686981,123.75,123.65,12.5401]
[1743428886108,1.40642997,123.81,123.7,38.4686981]
[1743428886318,362.0,123.85,123.66,77.0286981]
[1743428886319,4.3635,123.8,123.72,38.4686981]
[1743428886508,8.6108,123.8,123.72,38.4686981]
[1743428886708,16.6895,123.8,123.72,38.4686981]
[1743428886906,8.6108,123.8,123.72,100.4686981]
[1743428887102,0.0520652,123.77,123.72,100.4686981]
[1743428887302,0.0520652,123.77,123.74,46.5502981]
[1743428887507,0.0520652,123.77,123.75,38.6]
[1743428887808,329.2086981,123.87,123.8,8.0778]
[1743428887809,290.74,123.87,123.8,8.0778]
[1743428888206,329.2086981,123.87,123.76,38.68]
[1743428888413,8.0754,123.85,123.76,46.7604]
[1743428888608,77.1286981,123.85,123.76,38.68]
[1743428888809,0.05338054,123.82,123.79,0.05960125]
[1743428890911,38.72,123.81,123.71,38.4686981]
[1743428891112,20.7823,123.8,123.72,8.083]
[1743428891300,12.7038,123.8,123.71,38.4686981]
[1743428891708,12.7038,123.8,123.7,38.72]
[1743428891907,38.4686981,123.79,123.69,178.74397335]
[1743428892110,0.05717764,123.76,123.69,178.74397335]
[1743428892509,0.05717764,123.76,123.69,170.64877335]
[1743428892910,0.05717764,123.76,123.69,131.98877335]
[1743428893111,0.05717764,123.76,123.69,93.52007525]
[1743428893407,0.05717764,123.76,123.69,4.0212]
[1743428893807,0.05717764,123.76,123.69,66.0212]
[1743428894210,0.05717764,123.76,123.69,104.4898981]
[1743428894611,0.05717764,123.76,123.69,42.4898981]
[1743428894811,0.05717764,123.76,123.68,38.6]
[1743428895020,77.1086981,123.77,123.68,38.6]
[1743428895315,0.05442078,123.73,123.68,38.6]
[1743428896013,0.05442078,123.73,123.66,3.966]
[1743428896210,38.56,123.72,123.61,38.4686981]
[1743428896416,12.5299,123.71,123.61,77.0686981]
[1743428896714,0.05437601,123.67,123.65,38.4686981]
[1743428896911,51.4084,123.75,123.7,8.0845]
[1743428897114,290.76,123.79,123.71,38.4686981]
[1743428897604,290.76,123.79,123.73,38.4686981]
[1743428897809,290.76,123.79,123.73,77.1086981]
[1743428898019,38.64,123.8,123.73,81.1211981]
[1743428898314,0.05364106,123.77,123.75,0.05392931]
[1743428898509,374.8284,123.82,123.75,0.05392931]
[1743428898910,0.05266376,123.77,123.75,0.05392931]
[1743428899116,8.0818,123.75,123.7,8.0843]
[1743428899313,38.66,123.76,123.68,4.0125]
[1743428899508,38.66,123.76,123.67,77.1286981]
[1743428899710,8.0817,123.75,123.67,77.1286981]
[1743428900109,38.4686981,123.74,123.57,374.1864]
[1743428900320,0.05530965,123.72,123.62,46.8797981]
[1743428900522,38.6,123.71,123.62,46.8797981]
[1743428900713,0.05729617,123.68,123.62,46.8797981]
[1743428901020,0.05729617,123.68,123.62,8.4111]
[1743428901617,0.05729617,123.68,123.62,4.0854]
[1743428901819,38.54,123.67,123.58,3.9907]
[1743428902016,38.54,123.67,123.59,62.0]
[1743428902215,8.0886,123.64,123.59,62.0]
[1743428902415,0.05121843,123.65,123.59,62.0]
[1743428902912,8.13941843,123.65,123.59,62.0]
[1743428903116,0.05121843,123.65,123.59,62.0]
[1743428904219,8.0893,123.63,123.59,62.0]
[1743428904522,38.44,123.63,123.56,446.21703679]
[1743428904715,38.4686981,123.62,123.56,446.21703679]
[1743428905111,38.46,123.64,123.56,446.21703679]
[1743428905322,0.05323683,123.6,123.56,446.21703679]
[1743428908621,0.05323683,123.6,123.55,70.0942]
[1743428908821,0.05323683,123.6,123.55,62.0]
[1743428910724,0.05323683,123.6,123.56,38.36]
[1743428911122,8.0876,123.66,123.58,38.4686981]
[1743428911326,38.4686981,123.69,123.6,8.0908]
[1743428911618,38.4686981,123.67,123.61,38.46]
[1743428911822,76.9086981,123.67,123.59,8.2783]
[1743428912219,0.06099719,123.64,123.62,0.05368353]
[1743428912621,8.0892,123.63,123.62,0.05368353]
[1743428913426,8.0892,123.63,123.62,8.353e-05]
[1743428913820,0.06099719,123.64,123.62,8.353e-05]
[1743428914219,8.14989719,123.64,123.62,8.353e-05]
[1743428914626,0.06099719,123.64,123.62,8.353e-05]
[1743428914928,8.0892,123.63,123.62,8.353e-05]
[1743428917925,85.0978981,123.63,123.62,8.353e-05]
[1743428918123,93.1778981,123.63,123.62,8.353e-05]
[1743428918928,85.0886981,123.63,123.53,4.0665]
[1743428919133,38.4686981,123.6,123.51,46.5769]
[1743428919334,8.0937,123.57,123.51,38.48]
[1743428919530,38.4686981,123.6,123.51,8.0968]
[1743428919729,38.4686981,123.6,123.49,12.7526]
[1743428919730,38.4686981,123.58,123.49,12.7526]
[1743428919932,8.0958,123.54,123.5,38.5]
[1743428920124,8.0958,123.54,123.5,46.5972]
[1743428920326,0.05950846,123.55,123.5,46.5972]
[1743428920927,8.0962,123.53,123.51,62.0]
[1743428921131,0.05950846,123.55,123.49,12.7526]
[1743428921336,0.05950846,123.55,123.49,4.3962]
[1743428921536,38.4686981,123.56,123.49,4.3962]
[1743428921738,0.05617822,123.53,123.49,4.3962]
[1743428922336,0.05617822,123.53,123.47,38.4]
[1743428922736,8.0974,123.51,123.47,46.4994]
[1743428923338,0.0599908,123.5,123.47,46.4994]
[1743428923639,0.0599908,123.5,123.45,42.4653]
[1743428924039,0.0599908,123.5,123.49,8.0984]
[1743428924235,8.0942,123.56,123.49,38.32]
[1743428924431,76.7886981,123.59,123.49,38.32]
[1743428924840,8.0942,123.56,123.49,38.32]
[1743428925040,76.7886981,123.59,123.51,8.0965]
[1743428925436,0.05345477,123.56,123.54,0.05483844]
[1743428925643,8.0945,123.55,123.54,0.05483844]
[1743428925842,8.0945,123.55,123.54,3.844e-05]
[1743428926042,92.9631981,123.55,123.54,3.844e-05]
[1743428926242,101.3108981,123.55,123.54,3.844e-05]
[1743428926441,93.2108981,123.55,123.54,3.844e-05]
[1743428927537,93.2163981,123.55,123.45,42.5053]
[1743428927744,38.4686981,123.53,123.45,42.5053]
[1743428928044,8.0988,123.49,123.45,42.5053]
[1743428928240,38.4686981,123.53,123.45,4.2053]
[1743428928742,8.0987,123.49,123.45,4.2053]
[1743428928943,0.0555808,123.5,123.46,8.1004]
[1743428929138,0.0555808,123.5,123.47,38.34]
[1743428929333,0.0555808,123.5,123.48,8.0985]
[1743428929541,8.0965,123.52,123.47,38.34]
[1743428929941,4.0389,123.55,123.47,38.34]
[1743428930338,8.0968,123.52,123.47,38.34]
[1743428930642,0.05564417,123.51,123.48,0.0607173]
[1743428930841,8.15314417,123.51,123.48,0.0607173]
[1743428931041,0.05564417,123.51,123.49,8.0982]
[1743428931243,0.05564417,123.51,123.48,0.0607173]
[1743428931944,0.05564417,123.51,123.48,38.5294154]
[1743428932145,0.05564417,123.51,123.48,0.0607173]
[1743428933545,8.0981,123.5,123.48,0.0607173]
[1743428933842,0.05564417,123.51,123.48,0.0607173]
[1743428934041,8.15304417,123.51,123.48,0.0607173]
[1743428934248,0.05564417,123.51,123.48,0.0607173]
[1743428934652,0.05564417,123.51,123.5,8.0978]
[1743428934844,329.58,123.6,123.5,85.0286981]
[1743428935150,291.12,123.6,123.54,8.0949]
[1743428935343,291.12,123.6,123.54,38.46]
[1743428935741,38.4686981,123.65,123.54,76.9286981]
[1743428935946,38.5,123.65,123.56,38.52375282]
[1743428936141,8.0894,123.63,123.6,8.0909]
[1743428936843,8.0889,123.64,123.61,8.0904]
[1743428937046,291.34,123.66,123.59,38.52]
[1743428937252,8.14672694,123.64,123.61,8.14957895]
[1743428937450,8.14672694,123.64,123.61,0.05937895]
[1743428937451,0.05782694,123.64,123.61,0.05937895]
[1743428938252,38.4686981,123.71,123.61,0.05937895]
[1743428938652,38.4686981,123.71,123.6,38.4686981]
[1743428939048,8.0865,123.68,123.62,38.4686981]
[1743428939354,368.1286981,123.73,123.63,42.3875]
[1743428939649,0.05790819,123.66,123.65,8.0879]
[1743428939852,8.086,123.68,123.65,8.0879]
[1743428940051,0.05856107,123.67,123.64,38.52748917]
[1743428940253,8.0841,123.71,123.64,38.52748917]
[1743428940452,291.26,123.73,123.65,4.2603]
[1743428940653,42.5814,123.76,123.66,38.4686981]
[1743428940857,4.1414,123.76,123.67,38.44]
[1743428941044,329.7286981,123.79,123.68,38.4686981]
[1743428941250,291.26,123.79,123.7,38.4686981]
[1743428941447,0.05924527,123.75,123.72,0.06080533]
[1743428941853,8.0827,123.73,123.72,0.06080533]
[1743428942153,0.05924527,123.75,123.72,0.06080533]
[1743428942351,8.0825,123.74,123.72,0.06080533]
[1743428942853,8.14094527,123.75,123.72,0.06080533]
[1743428943254,0.05924527,123.75,123.72,0.06080533]
[1743428943958,5.8100163,123.83,123.73,38.4686981]
[1743428944149,38.4686981,123.86,123.75,38.4686981]
[1743428944354,38.4686981,123.86,123.76,42.6124]
[1743428945052,38.4686981,123.86,123.76,50.6931]
[1743428945356,0.05313049,123.82,123.8,0.058659]
[1743428945545,329.58182859,123.82,123.73,4.1256]
[1743428945746,4.4048,123.81,123.73,4.1256]
[1743428945950,291.06,123.82,123.73,46.7118981]
[1743428946148,46.9735981,123.85,123.75,38.4686981]
[1743428946349,340.30450484,123.89,123.77,38.4686981]
[1743428946559,8.0746,123.86,123.81,8.0769]
[1743428946759,0.05544466,123.84,123.81,0.05166995]
[1743428947058,8.13134466,123.84,123.81,0.05166995]
[1743428947255,0.05544466,123.84,123.81,0.05166995]
[1743428949251,8.0768,123.82,123.81,0.05166995]
[1743428951459,8.0763,123.83,123.81,0.05166995]
[1743428951661,0.05544466,123.84,123.81,0.05166995]
[1743428953360,38.4686981,123.83,123.74,4.1256]
[1743428953567,38.52414276,123.84,123.69,38.4686981]
[1743428953568,38.4686981,123.79,123.69,38.4686981]
[1743428953764,38.4686981,123.79,123.71,38.66]
[1743428954463,38.4686981,123.81,123.71,46.7437]
[1743428954770,8.0815,123.75,123.74,0.0601837]
[1743428955068,0.06060543,123.76,123.73,0.05282391]
[1743428955361,0.06060543,123.76,123.73,38.52152201]
[1743428955666,0.06060543,123.76,123.74,3.9819]
[1743428956266,329.3286981,123.87,123.75,77.0486981]
[1743428956458,295.2154,123.87,123.75,85.3909981]
[1743428956662,38.58,123.86,123.76,8.0802]
[1743428957171,77.0486981,123.86,123.75,85.3909981]
[1743428957473,0.05733205,123.82,123.8,0.05740836]
[1743428958073,8.0775,123.81,123.8,0.05740836]
[1743428958269,77.04603015,123.82,123.72,38.54]
[1743428958471,8.0797,123.78,123.72,38.54]
[1743428959168,42.7655981,123.8,123.72,38.54]
[1743428959675,0.05298748,123.77,123.75,0.0544571]
[1743428961569,307.0073,123.87,123.75,0.0544571]
[1743428961570,38.4686981,123.84,123.76,38.5]
[1743428961769,12.3364,123.85,123.76,47.1295]
[1743428961964,4.2612,123.85,123.77,42.6071981]
[1743428962267,290.86,123.87,123.79,38.4686981]
[1743428962574,8.6505,123.9,123.8,38.5]
[1743428962973,0.06104301,123.84,123.82,0.05661668]
[1743428963174,0.06104301,123.84,123.83,8.0762]
[1743428963473,0.05526127,123.85,123.82,0.0533751]
[1743428963674,0.05526127,123.85,123.8,38.5]
[1743428963868,0.05526127,123.85,123.82,0.05631736]
[1743428964683,0.05526127,123.85,123.83,8.0762]
[1743428965178,0.05526127,123.85,123.84,38.46]
[1743428965384,4.0826,123.92,123.84,38.46]
[1743428965680,8.0731,123.88,123.84,38.46]
[1743428966286,4.0826,123.92,123.84,38.46]
[1743428966583,0.05232492,123.87,123.86,8.0742]
[1743428966779,8.0708,123.92,123.84,81.2712981]
[1743428967084,0.05684135,123.88,123.85,0.05268338]
[1743428967280,76.8286981,123.97,123.84,81.2712981]
[1743428967579,38.4686981,123.93,123.85,8.0745]
[1743428967781,38.4686981,123.91,123.83,8.3188]
[1743428967976,38.4686981,123.91,123.83,46.6788]
[1743428968181,38.4686981,123.89,123.83,38.36]
[1743428968381,0.05913412,123.88,123.86,0.05948337]
[1743428968680,38.4686981,123.89,123.83,8.0758]
[1743428968881,8.0741,123.87,123.86,0.05165959]
[1743428969076,0.0557768,123.88,123.78,38.4686981]
[1743428969285,38.4686981,123.87,123.78,38.36]
[1743428969474,76.8486981,123.89,123.78,76.8286981]
[1743428969680,76.8486981,123.89,123.83,8.0757]
[1743428969985,76.8486981,123.89,123.78,76.8286981]
[1743428970384,0.05308649,123.85,123.82,0.05954464]
[1743428970689,4.3958,123.92,123.82,76.94824274]
[1743428970979,8.0729,123.89,123.85,8.0744]
[1743428971181,38.4686981,123.91,123.83,66.241]
[1743428971386,38.4686981,123.91,123.82,38.42]
[1743428971887,0.05500293,123.88,123.85,0.05158714]
[1743428972081,0.05500293,123.88,123.85,8.12608714]
[1743428972282,0.05500293,123.88,123.85,0.05158714]
[1743428972686,8.0742,123.86,123.85,0.05158714]
[1743428973891,0.05500293,123.88,123.85,0.05158714]
[1743428974388,0.05500293,123.88,123.86,8.0738]
[1743428974983,0.05500293,123.88,123.85,38.47158714]
[1743428976084,400.28,124.05,123.86,38.4686981]
[1743428976389,8.2664,124.0,123.91,38.4686981]
[1743428976578,8.2664,124.0,123.86,361.9777]
[1743428976579,8.0674,123.97,123.92,46.3698]
[1743428976782,46.7350981,124.0,123.92,38.3]
[1743428977084,0.05510962,123.97,123.95,0.05273831]
[1743428978086,0.05510962,123.97,123.87,42.4990981]
[1743428978087,0.05510962,123.97,123.9,38.16]
[1743428978288,4.2834,123.97,123.9,38.16]
[1743428978889,46.7350981,124.0,123.9,38.16]
[1743428979082,8.2664,124.0,123.94,0.05165178]
[1743428979288,8.2664,124.0,123.95,38.12]
[1743428979587,341.24835332,124.06,123.95,76.5886981]
[1743428979792,305.59270674,124.06,123.97,38.4686981]